Cogmind - Beta 14 @@@ ROGUE MODE // 2024.11.12 @ 12:47:12 Player: Zunekagek Result: Destroyed by G-34 Mercenary with Small Laser Performance ------------- Evolutions (0) 0 Regions Visited (1) 200 Robots Destroyed (19) 95 Value Destroyed (353) 353 Prototype IDs (2) 40 Alien Tech Used (0) 0 Bonus (0) 0 TOTAL SCORE: 688 Bonus ------- None Cogmind --------- Core Integrity 0/250 Matter 200/300 Energy 255/275 System Corruption 0% Temperature Cool (6) Movement Walking (120) Location -10/Materials Parts ------- > --- POWER (1) -------- Light Ion Engine > --- PROPULSION (2) --- Aluminum Leg Aluminum Leg > --- UTILITY (2) ------ Small Storage Unit Medium Battery > --- WEAPON (2) ------- Beam Cannon Hammer > --- INVENTORY (8) ---- Ion Engine Heat Sink Heavy Assault Rifle Peak State ------------ > --- POWER ------------ Light Ion Engine > --- PROPULSION ------- Aluminum Leg Aluminum Leg > --- UTILITY ---------- Small Storage Unit Terrain Scan Processor > --- WEAPON ----------- Heavy Assault Rifle Hammer > --- INVENTORY -------- Ion Engine Aluminum Leg Aluminum Leg Small Storage Unit Heavy Assault Rifle [Rating: 9] Favorites ----------- Power Ion Engine Engine Ion Engine Propulsion Aluminum Leg Leg Aluminum Leg Utility Small Storage Unit Storage Small Storage Unit Processor Terrain Scan Processor Protection Utility Shielding Weapon Hammer Energy Gun Medium Laser Energy Cannon Beam Cannon Ballistic Gun Heavy Assault Rifle Launcher Rocket Launcher Impact Weapon Hammer Build | -11 -10 ------- Run | Yrd Mat Slots Evolved . | . . Power . | . . Propulsion . | . . Utility . | . . Weapon . | . . Parts Attached 25 | 6 19 Power 3 | 1 2 Engine 3 | 1 2 Core . | . . Reactor . | . . Propulsion 7 | 2 5 Treads . | . . Leg 7 | 2 5 Wheel . | . . Hover . | . . Flight . | . . Utility 5 | 1 4 Device . | . . Storage 3 | 1 2 Processor 1 | . 1 Hackware . | . . Protection 1 | . 1 Artifact . | . . Weapon 10 | 2 8 Energy Gun 1 | 1 . Energy Cannon 1 | . 1 Ballistic Gun 3 | 1 2 Ballistic Cannon . | . . Launcher 2 | . 2 Special Weapon . | . . Impact Weapon 3 | . 3 Slashing Weapon . | . . Piercing Weapon . | . . Special Melee Weapon . | . . Unidentified Prototypes . | . . Parts Lost 6 | . 6 Power 1 | . 1 Propulsion 4 | . 4 Utility . | . . Weapon 1 | . 1 Highest Loss Streak 4 | . 4 To Critical Strikes . | . . Average Slot Usage (%) 87 | . 87 Engine 12 | . 12 Leg 26 | . 26 Storage 15 | . 15 Processor 4 | . 4 Energy Gun 5 | . 5 Energy Cannon 1 | . 1 Ballistic Gun 10 | . 10 Impact Weapon 8 | . 8 Peak Build Rating 9 | 6 9 Average Rating 6 | 4 7 On Entrance 3 | . 6 Naked Turns . | . . Heaviest Build 16 | 13 16 Greatest Support 20 | 20 20 Greatest Overweight (x) 2 | 1 2 Average Overweight (x) . | . . Largest Inventory Capacity 8 | 8 8 Average Capacity 7 | 7 8 Most Carried 7 | 2 7 Average Carried 4 | . 4 Final Capacity 8 | 8 8 Final Carried 3 | 2 3 Class Distribution -------------------- 55% | Mutant 44% | Scavenger-Mutant Dominant Class ---------------- Mutant | -10/Materials Resources | -11 -10 ----------- Run | Yrd Mat Matter Collected 384 | 165 219 Remotely . | . . Salvage Created 469 | . 469 Parts 26 | . 26 Haulers Intercepted . | . . Recyclers Shooed 4 | . 4 Parts Field Recycled . | . . Retrieved Matter . | . . Parts Self-Destructed . | . . Prevented . | . . Kills | -11 -10 ------- Run | Yrd Mat Combat Hostiles Destroyed 10 | . 10 Melee 2 | . 2 Guns 1 | . 1 AOE 5 | . 5 Classes Destroyed 7 | . 7 Worker 2 | . 2 Builder 2 | . 2 Recycler 3 | . 3 Operator 1 | . 1 Watcher 1 | . 1 Swarmer 3 | . 3 Grunt 7 | . 7 Best Kill Streak 9 | . 9 Combat Bots Only 6 | . 6 Max Kills in Single Turn 3 | . 3 Gunslinging . | . . Exploded 2 | . 2 Melee 1 | . 1 Uniques/NPCs Destroyed . | . . Combat | -11 -10 -------- Run | Yrd Mat Hostile Shots Fired 123 | . 123 Missed 29 | . 29 Damage Taken 1143 | . 1143 Core 253 | . 253 Absorbed by Shields . | . . Core Remaining (%) 100 | 100 . Volleys Fired 11 | . 11 Largest 2 | . 2 Hottest 66 | . 66 Shots Fired 15 | . 15 Gun 10 | . 10 Cannon . | . . Launcher 5 | . 5 Special . | . . Kinetic 9 | . 9 Thermal 1 | . 1 Explosive 5 | . 5 Electromagnetic . | . . Robot Hit Streak 2 | . 2 Robot Miss Streak 2 | . 2 Penetration Max . | . . Secondary Targets . | . . Shots Hit Robots 31 | . 31 Core Hits 16 | . 16 Critical Kills . | . . Critical Parts Destroyed 3 | . 3 Critical Strikes 3 | . 3 Smash 3 | . 3 Melee Attacks 36 | . 36 Impact 36 | . 36 Slashing . | . . Piercing . | . . Sneak Attacks 8 | . 8 Combat Hostiles . | . . Follow-up Attacks . | . . Damage Inflicted 1465 | . 1465 Guns 98 | . 98 Cannons . | . . Explosions 525 | . 525 Melee 840 | . 840 Ramming 2 | . 2 Kinetic 98 | . 98 Thermal . | . . Explosive 525 | . 525 Electromagnetic . | . . Impact 840 | . 840 Slashing . | . . Piercing . | . . Highest Corruption . | . . Average Corruption . | . . Corruption Purged . | . . Corruption Blocked . | . . Overload Shots . | . . Overflow Damage 307 | . 307 Projectiles . | . . Explosions 71 | . 71 Melee 236 | . 236 Knockbacks 3 | . 3 Impact 3 | . 3 Kinetic . | . . Secondary . | . . Self-Inflicted Damage 110 | . 110 Shots 3 | . 3 Rammed . | . . Targets Rammed 4 | . 4 Kicked 4 | . 4 Crushed . | . . Highest Temperature 15 | . 15 Average Temperature 8 | . 8 Received Heat Transfer 546 | . 546 Siege Activations . | . . Robots Corrupted 4 | . 4 Combat Hostiles 2 | . 2 Parts Fried 6 | . 6 Impact Corruptions 11 | . 11 Robots Melted . | . . Combat Hostiles . | . . Parts Melted . | . . Heat Transferred . | . . Parts Sabotaged . | . . Parts Stolen . | . . Parts Stripped . | . . Power Chain Reactions . | . . Alert | -11 -10 ------- Run | Yrd Mat Peak Influence 276 | . 276 Initial . | . . Average 77 | . 83 Maximum Alert Level 1 | . 1 Low Security (%) 87 | 100 86 Level 1 12 | . 13 Level 2 . | . . Level 3 . | . . Level 4 . | . . Level 5 . | . . High Security . | . . Max Security . | . . Squads Dispatched 3 | . 3 Investigation 2 | . 2 Extermination . | . . Reinforcement 1 | . 1 Assault . | . . Garrison . | . . Intercept . | . . Searches Triggered . | . . Construction Impeded . | . . Haulers Reinforced . | . . Active Scanning Responses . | . . Cargo Convoy Interrupts . | . . Stealth | -11 -10 --------- Run | Yrd Mat Distress Signals 2 | . 2 Communications Jammed . | . . Distress Signals . | . . Times Spotted 14 | . 14 Peak Tracking Total 7 | . 7 Tactical Retreats . | . . Traps | -11 -10 ------- Run | Yrd Mat Traps Triggered 2 | . 2 Indirectly . | . . Trap Hack Attempts . | . . Triggered . | . . Disarmed . | . . Reprogrammed . | . . Reused . | . . Traps Extracted . | . . Installed . | . . Triggered . | . . Machines | -11 -10 ---------- Run | Yrd Mat Machines Disabled 1 | . 1 Max in Single Turn 1 | . 1 Machines Repaired . | . . Machines Dismantled . | . . Machines Sabotaged . | . . Overloaded Fab Kills . | . . Hacking | -11 -10 --------- Run | Yrd Mat Machines Accessed 3 | . 3 Terminals 3 | . 3 Fabricators . | . . Repair Stations . | . . Recycling Units . | . . Scanalyzers . | . . Garrison Access . | . . Total Hacks 8 | . 8 Successful 2 | . 2 Failed 6 | . 6 Catastrophic 1 | . 1 Database Lockouts . | . . Manual . | . . Terminals 8 | . 8 Fabricators . | . . Repair Stations . | . . Recycling Units . | . . Scanalyzers . | . . Garrison Access . | . . Terminal Hacks 2 | . 2 Robot Analysis 1 | . 1 Prototype ID Bank 1 | . 1 Fabricator Hacks . | . . Repair Station Hacks . | . . Recycling Unit Hacks . | . . Scanalyzer . | . . Garrison Access Hacks . | . . Unauthorized Hacks . | . . Terminals . | . . Fabricators . | . . Repair Stations . | . . Recycling Units . | . . Scanalyzers . | . . Garrison Access . | . . Data Cores Recovered . | . . Used . | . . Hacking Detections 3 | . 3 Full Trace Events . | . . Feedback Events . | . . Feedback Blocked . | . . Robot Schematics Acquired . | . . Robots Built . | . . Authchips . | . . Time . | . . Total Robot Build Rating . | . . Part Schematics Acquired . | . . Parts Built . | . . Authchips . | . . Time . | . . Total Part Build Rating . | . . Parts Repaired . | . . Time . | . . Parts Recycled . | . . Recycled Matter . | . . Retrieved Matter . | . . Retrieved Components . | . . Parts Scanalyzed . | . . Part Schematics Acquired . | . . Parts Damaged . | . . Bothacking | -11 -10 ------------ Run | Yrd Mat Used RIF Installer . | . . Robots Hacked . | . . Non-combat . | . . Combat . | . . Robot Hacks Applied . | . . Relay Couplers Released . | . . Fabnet Peak Effective % . | . . Robots Rewired . | . . Allies Hacked . | . . Hacks Repelled . | . . Allies | -11 -10 -------- Run | Yrd Mat Total Allies . | . . Largest Group . | . . Highest-Rated Group . | . . Highest-Rated Ally . | . . Total Orders . | . . Ally Attacks . | . . Total Damage . | . . Kills . | . . Allies Corrupted . | . . Allies Melted . | . . Intel | -11 -10 ------- Run | Yrd Mat Robot Analysis Total 1 | . 1 Derelict Logs Recovered . | . . Drone Launches . | . . Drone Recoveries . | . . Exploration | -11 -10 ------------- Run | Yrd Mat Turns Passed 734 | 51 683 Spaces Moved 435 | 33 402 Core 8 | 5 3 Treads . | . . Legs 427 | 28 399 Wheels . | . . Hover . | . . Flight . | . . Fastest Speed 50 | 50 120 Average Speed 120 | 124 120 Slowest Speed 190 | 190 150 Overloaded Moves . | . . Propulsion Burnouts . | . . Robots Hopped . | . . Cave-ins Triggered . | . . Exploration Rate (%) 33 | 4 62 Regions Visited 1 Branch Regions . Pre-discovered Areas . | . . Known Exits Taken . | . . Unknown Exits Taken 1 | 1 . Scrap Searched . | . . Spaces Dug . | . . Terrain Destroyed 47 | . 47 Melee . | . . Projectile . | . . AOE 47 | . 47 Terrain Rammed . | . . Walls Destroyed . | . . Machines Disabled . | . . Actions | -11 -10 --------- Run | Yrd Mat Total 566 | 40 526 Wait 28 | . 28 Move 434 | 32 402 Hop . | . . Pick Up 12 | 2 10 Fast Attach 12 | 6 6 Attach 10 | . 10 Detach 7 | . 7 Swap 3 | . 3 Drop 9 | . 9 Fire 11 | . 11 Melee 36 | . 36 Ram . | . . Kick 4 | . 4 Crush . | . . Escape Stasis . | . . Rewire . | . . Trap . | . . Miscellaneous . | . . Route ------- -11/Scrapyard -10/Materials (discovered 2 exits: [*Mat] / [*Min]) History --------- Turn | Location | Event 7 | -11/Scrapyard | Discovered new exit (range 16) 52 | -11/Scrapyard | Entered Materials 159 | -10/Materials | Discovered new exit (range 8) 218 | -10/Materials | Discovered new exit (range 3) 325 | -10/Materials | Build established: Mutant 354 | -10/Materials | Core integrity fell below 50% 388 | -10/Materials | Lost 4 parts (1p2n1w) 715 | -10/Materials | Build established: Scavenger-Mutant 724 | -10/Materials | Core integrity fell below 20% 735 | -10/Materials | Destroyed by G-34 Mercenary with Small Laser Last Messages --------------- 00693_ Dropped Hvy. Assault Rifle. 00695_ Sneak attack on K-01 Serf. 00702_ G-34 Mercenary knocked back. 00712_ R-06 Scavenger collects Hvy. Assault Rifle. 00719_ G-34 Mercenary suffers critical hit (Smash). 00719_ Destroyed Aluminum Leg. 00719_ G-34 Mercenary system corrupted by crushing effect. 00720_ G-34 Mercenary system terminally corrupted. 00720_ Aluminum Leg fried. 00725_ Aluminum Leg destroyed. 00725_ G-34 Mercenary suffers critical hit (Smash). 00725_ Destroyed Heat Sink. 00725_ G-34 Mercenary system corrupted by crushing effect. 00731_ Aluminum Leg destroyed. Map ----- +----------------------------------------------------+ | ########+#####+###?# #????????# #?############? | | #??????????? ???# #????????# # #? | | #??????????? ??/ #????????# # #? | | #?????????# ?# #????????# " #? | | #?????????# ?# #????????#% # #? | | #?????????# # ########## #?? #? | | ??????????# # # ### ##???#########? | | ??????????# ### #????????????? | | #?????????# " #????????????? | | #?????????# " #????????????? | | #?????############## # = #????????????? | | #?????# # %#### #????????????? | | #?????# T # # ## ### ###????????????? | | #?????# # """ """ # ####??##??????????????? | | #?????# #?""" """ /u k#############?????????? | | #?????# #?""" """ # ????????? | | #?????# """ #??"" """ # % ????????? | | #?????# """ #???" """ #% ????????? | | +####### """ #???? # ############??????????? | | ## #???####### # #???????????????????? | | """" ######+###########% # #???????????????????? | | """" # # #???????????????????? | | """" # ###???????????????????? | | + # #???????????????????? | | # ##+########### g###???????????????????? | | ###+### # #??????#%@g#?????????????????????? | | ?# # #??????# #?????????????????????? | | ## # #??????# #?????????????????????? | | # #??????# #?????????????????????? | | ####### # #??????# ?????????????????????? | | ####### # #??????# ????????????????????? | | """ # # #?????? ???????????????????? | | = """ # # #?????? ""???????????????????? | | """ + # #?????? T" ??????????????????? | | # # #????? ""???????????????????? | | # !########???? ????????????????????? | | #% # #???? ????????????????????? | | ####### + """ #????## ###???????????????????? | | ??????# # """ #?????? ??????????????????????? | | ??????# # """ #?????? ??????????????????????? | | ####### # """ #?????? ??????????????????????? | | # # """ #???????????????????????????????? | | # + #???????????????????????????????? | | """ + # """ #???????????????????????????????? | | """ # # """ #???????????????????????????????? | | """ # # """ #???????????????????????????????? | | ##### """ #???????????????????????????????? | | #######???# """ #???????????????????????????????? | | ??????????# !#???????????????????????????????? | | ??????????########???????????????????????????????? | +----------------------------------------------------+ Best States ------------- Heat Dissipation 25 Energy Generation 10 Energy Capacity 275 Matter Stores 278 Matter Capacity 300 Sight Range 16 Terrain Scan Density 85 Evasion (%) 55 Item Schematics ----------------- None Robot Schematics ------------------ None Fabricated ------------ Nothing Alien Tech Used ----------------- None Achievements -------------- None Challenges ------------ None Game ------ Seed XenonGravmagCleaver Manual? 0 Play Time 00:10:32 Cumulative 22.5 hours Start 2024.11.12 @ 12:36:49 End 2024.11.12 @ 12:47:12 Sessions 1 Manual Loads 0 Difficulty Rogue Special Mode None Game No. 22 Rogue 22 Adventurer 0 Explorer 0 Win Type - Total 0 Types 0/0/0/0/0/0/0/0/0 Lore% 10 Gallery% 21 Achievement% 21 Wizard Run 0 Options --------- Layout 1 ASCII 0 Keyboard 1 Movement Numpad Keybinds 0 Fullscreen 1 Font 24/Smallcaps Map View 50x35 Zoom Use 0% Tactical HUD 1 Map Filters NONE Filters NONE Steam 1 RUN: 2b7008b3-ba8b-445b-8b33-c98427b116c5